Cogmind - Beta 9.1 @@@ ROGUE MODE // 2019.11.01 @ 17:00:26 Player: MrPainting Result: Destroyed by S-10 Pest with Light Assault Rifle Performance ------------- Evolutions (0) 0 Regions Visited (1) 200 Robots Destroyed (15) 75 Value Destroyed (412) 412 Prototype IDs (1) 20 Alien Tech Used (0) 0 Bonus (0) 0 TOTAL SCORE: 707 Bonus ------- None Cogmind --------- Core Integrity 0/250 Matter 295/300 Energy 100/100 System Corruption 0% Temperature Cool (0) Location -10/Materials Parts ------- Power (1) Propulsion (2) Utility (2) Cooling System Large Storage Unit Weapon (2) Inventory (10) Improved Flight Unit Improved Flight Unit High-capacity Storage Unit High-capacity Storage Unit Shield Generator Peak State ------------ Power Ion Engine Propulsion Improved Flight Unit Improved Flight Unit Utility Heat Sink Large Storage Unit Weapon Assault Rifle Light Assault Rifle Inventory (Empty) [Rating: 11] Favorites ----------- Power Ion Engine Engine Ion Engine Propulsion Light Treads Treads Light Treads Leg Aluminum Leg Hover Unit Hover Unit Flight Unit Improved Flight Unit Utility Large Storage Unit Device Cooling System Storage Large Storage Unit Weapon Assault Rifle Energy Gun Medium Laser Ballistic Gun Assault Rifle Build | -11 -10 ------- Run | Scr Mat Slots Evolved . | . . Power . | . . Propulsion . | . . Utility . | . . Weapon . | . . Parts Attached 18 | 2 16 Power 2 | . 2 Engine 2 | . 2 Core . | . . Reactor . | . . Propulsion 9 | . 9 Treads 2 | . 2 Leg 2 | . 2 Wheel . | . . Hover 2 | . 2 Flight 3 | . 3 Utility 3 | . 3 Device 2 | . 2 Storage 1 | . 1 Processor . | . . Hackware . | . . Protection . | . . Artifact . | . . Weapon 4 | 2 2 Energy Gun 1 | 1 . Energy Cannon . | . . Ballistic Gun 3 | 1 2 Ballistic Cannon . | . . Launcher . | . . Special Weapon . | . . Impact Weapon . | . . Slashing Weapon . | . . Piercing Weapon . | . . Special Melee Weapon . | . . Unidentified Prototypes 1 | . 1 Parts Lost 7 | . 7 Power 1 | . 1 Propulsion 3 | . 3 Utility . | . . Weapon 3 | . 3 Highest Loss Streak 5 | . 5 Average Slot Usage (%) 87 | . 87 Engine 13 | . 13 Treads 12 | . 12 Hover 10 | . 10 Flight 1 | . 1 Device 7 | . 7 Storage 13 | . 13 Energy Gun 5 | . 5 Ballistic Gun 21 | . 21 Naked Turns . | . . Heaviest Build 26 | 3 26 Greatest Support 40 | 3 40 Greatest Overweight (x) 5 | . 5 Average Overweight (x) 1 | . 1 Largest Inventory Capacity 10 | 4 10 Average Capacity 9 | 4 9 Most Carried 6 | 4 6 Average Carried 3 | 2 3 Final Capacity 10 | 4 10 Final Carried 5 | 4 5 Class Distribution -------------------- 100% | Mutant Dominant Class ---------------- Mutant | -10/Materials Resources | -11 -10 ----------- Run | Scr Mat Matter Collected 519 | 203 316 Remotely . | . . Salvage Created 542 | . 542 Parts 32 | . 32 Haulers Intercepted . | . . Recyclers Shooed 1 | . 1 Parts Field Recycled . | . . Retrieved Matter . | . . Parts Self-Destructed . | . . Prevented . | . . Kills | -11 -10 ------- Run | Scr Mat Combat Hostiles Destroyed 10 | . 10 Guns 10 | . 10 Classes Destroyed 5 | . 5 Recycler 1 | . 1 Operator 2 | . 2 Watcher 2 | . 2 Swarmer 1 | . 1 Grunt 9 | . 9 Best Kill Streak 4 | . 4 Combat Bots Only 4 | . 4 Max Kills in Single Turn 1 | . 1 Gunslinging . | . . Exploded . | . . Melee . | . . Uniques/NPCs Destroyed . | . . Combat | -11 -10 -------- Run | Scr Mat Damage Taken 1037 | . 1037 Core 252 | . 252 Absorbed by Shields . | . . Core Remaining (%) 100 | 100 . Volleys Fired 58 | . 58 Largest 2 | . 2 Hottest 70 | . 70 Shots Fired 110 | . 110 Gun 110 | . 110 Cannon . | . . Launcher . | . . Special . | . . Kinetic 79 | . 79 Thermal 31 | . 31 Explosive . | . . Electromagnetic . | . . Robot Hit Streak 9 | . 9 Robot Miss Streak 4 | . 4 Penetration Max . | . . Secondary Targets 3 | . 3 Max Gunslinging Chain 1 | . 1 Shots Hit Robots 79 | . 79 Core Hits 28 | . 28 Critical Hits . | . . Critical Kills . | . . Critical Parts Destroyed . | . . Melee Attacks . | . . Impact . | . . Slashing . | . . Piercing . | . . Sneak Attacks . | . . Combat Hostiles . | . . Follow-up Attacks . | . . Damage Inflicted 907 | . 907 Guns 907 | . 907 Cannons . | . . Explosions . | . . Melee . | . . Ramming . | . . Kinetic 632 | . 632 Thermal 275 | . 275 Explosive . | . . Electromagnetic . | . . Impact . | . . Slashing . | . . Piercing . | . . Highest Corruption . | . . Average Corruption . | . . Corruption Purged . | . . Overload Shots . | . . Overflow Damage . | . . Projectiles . | . . Explosions . | . . Melee . | . . Knockbacks . | . . Impact . | . . Kinetic . | . . Secondary . | . . Self-Inflicted Damage . | . . Shots . | . . Rammed 1 | . 1 Targets Rammed 1 | . 1 Kicked . | . . Crushed . | . . Highest Temperature 364 | . 364 Average Temperature 64 | . 64 Received Heat Transfer 372 | . 372 Siege Activations . | . . Robots Corrupted . | . . Combat Hostiles . | . . Parts Fried . | . . Impact Corruptions . | . . Robots Melted . | . . Combat Hostiles . | . . Parts Melted 1 | . 1 Heat Transferred 814 | . 814 Parts Sabotaged . | . . Parts Stolen . | . . Parts Stripped . | . . Power Chain Reactions . | . . Missiles Intercepted . | . . Alert | -11 -10 ------- Run | Scr Mat Peak Influence 234 | . 234 Average Influence 76 | . 79 Maximum Alert Level 1 | . 1 Low Security (%) 93 | . . Level 1 6 | . . Level 2 . | . . Level 3 . | . . Level 4 . | . . Level 5 . | . . High Security . | . . Max Security . | . . Squads Dispatched 3 | . 3 Investigation 1 | . 1 Extermination . | . . Reinforcement 2 | . 2 Assault . | . . Garrison . | . . Intercept . | . . Construction Impeded . | . . Haulers Reinforced . | . . Stealth | -11 -10 --------- Run | Scr Mat Distress Signals 2 | . 2 Communications Jammed . | . . Distress Signals . | . . Times Spotted 16 | . 16 Peak Tracking Total 4 | . 4 Tactical Retreats . | . . Traps | -11 -10 ------- Run | Scr Mat Traps Triggered 1 | . 1 Indirectly . | . . Trap Hack Attempts . | . . Triggered . | . . Disarmed . | . . Reprogrammed . | . . Reused . | . . Traps Extracted . | . . Installed . | . . Triggered . | . . Machines | -11 -10 ---------- Run | Scr Mat Machines Disabled . | . . Max in Single Turn . | . . Machines Sabotaged . | . . Garrisons Compromised . | . . Overloaded Fab Kills . | . . Fab Network Shutdowns . | . . Hacking | -11 -10 --------- Run | Scr Mat Machines Accessed . | . . Terminals . | . . Fabricators . | . . Repair Stations . | . . Recycling Units . | . . Scanalyzers . | . . Garrison Access . | . . Total Hacks . | . . Successful . | . . Failed . | . . Catastrophic . | . . Database Lockouts . | . . Manual . | . . Terminals . | . . Fabricators . | . . Repair Stations . | . . Recycling Units . | . . Scanalyzers . | . . Garrison Access . | . . Terminal Hacks . | . . Fabricator Hacks . | . . Repair Station Hacks . | . . Recycling Unit Hacks . | . . Scanalyzer . | . . Garrison Access Hacks . | . . Unauthorized Hacks . | . . Terminals . | . . Fabricators . | . . Repair Stations . | . . Recycling Units . | . . Scanalyzers . | . . Garrison Access . | . . Data Cores Recovered . | . . Used . | . . Hacking Detections . | . . Full Trace Events . | . . Feedback Events . | . . Feedback Blocked . | . . Robot Schematics Acquired . | . . Robots Built . | . . Matter . | . . Time . | . . Total Robot Build Rating . | . . Part Schematics Acquired . | . . Parts Built . | . . Matter . | . . Time . | . . Total Part Build Rating . | . . Parts Repaired . | . . Time . | . . Parts Recycled . | . . Recycled Matter . | . . Retrieved Matter . | . . Retrieved Components . | . . Parts Scanalyzed . | . . Part Schematics Acquired . | . . Parts Damaged . | . . Bothacking | -11 -10 ------------ Run | Scr Mat Used RIF Installer . | . . Robots Hacked . | . . Non-combat . | . . Combat . | . . Robot Hacks Applied . | . . Relay Couplers Released . | . . Robots Rewired . | . . Allies Hacked . | . . Hacks Repelled . | . . Allies | -11 -10 -------- Run | Scr Mat Total Allies . | . . Largest Group . | . . Highest-Rated Group . | . . Highest-Rated Ally . | . . Total Orders . | . . Ally Attacks . | . . Total Damage . | . . Kills . | . . Allies Corrupted . | . . Allies Melted . | . . Intel | -11 -10 ------- Run | Scr Mat Robot Analysis Total . | . . Derelict Logs Recovered . | . . Drone Launches . | . . Drone Recoveries . | . . Exploration | -11 -10 ------------- Run | Scr Mat Turns Passed 818 | 28 790 Spaces Moved 373 | 37 336 Core 55 | 37 18 Treads 147 | . 147 Legs 6 | . 6 Wheels . | . . Hover 146 | . 146 Flight 19 | . 19 Fastest Speed 50 | 50 50 Average Speed 156 | 50 168 Slowest Speed 300 | 50 300 Overloaded Moves . | . . Propulsion Burnouts . | . . Robots Hopped . | . . Cave-ins Triggered . | . . Exploration Rate (%) 27 | 3 52 Regions Visited 1 Branch Regions . Pre-discovered Areas . | . . Known Exits Taken . | . . Unknown Exits Taken 1 | 1 . Scrap Searched . | . . Spaces Dug . | . . Terrain Destroyed . | . . Melee . | . . Projectile . | . . AOE . | . . Actions | -11 -10 --------- Run | Scr Mat Total 502 | 46 456 Wait 14 | . 14 Move 372 | 36 336 Hop . | . . Pick Up 26 | 7 19 Fast Attach 1 | . 1 Attach 11 | 2 9 Detach . | . . Swap 6 | . 6 Drop 13 | 1 12 Fire 58 | . 58 Melee . | . . Ram 1 | . 1 Kick . | . . Crush . | . . Escape Stasis . | . . Rewire . | . . Trap . | . . Miscellaneous . | . . Route ------- -11/Scrapyard -10/Materials (discovered 1 exit: [*Mat]) History --------- Turn | Location | Event 6 | -11/Scrapyard | Discovered new exit (range 16) 29 | -11/Scrapyard | Entered Materials 305 | -10/Materials | Build established: Mutant 665 | -10/Materials | Discovered new exit (range 7) 789 | -10/Materials | Core integrity fell below 50% 812 | -10/Materials | Core integrity fell below 20% 819 | -10/Materials | Destroyed by S-10 Pest with Light Assault Rifle Last Messages --------------- 00476_ ALERT: Hostiles spotted, dispatching reinforcements to Terminal M004. 00487_ O-16 Technician destroyed. 00490_ Acquired 12 matter. 00494_ Acquired Hover Unit. 00504_ Dropped Heat Sink. 00632_ G-34 Mercenary destroyed. 00634_ Acquired 48 matter. 00641_ K-01 Serf collects debris. 00665_ EXIT=FOUND 00754_ Acquired Hcp. Storage Unit. 00771_ Assault Rifle destroyed. 00778_ S-10 Pest destroyed. 00778_ Hover Unit destroyed. 00780_ Acquired 11 matter. 00784_ Lgt. Assault Rifle destroyed. 00791_ Ion Engine destroyed. 00797_ K-01 Serf cleans the Recycling Unit. 00798_ Hover Unit destroyed. 00802_ Slammed into K-01 Serf. Map ----- +----------------------------------------------------+ | | | | | | | | | | | | | | | | | | | | | | | | | | | | | | | | | | | | | | | | | ??????????????????????????????????????? | | ??????????????????????????????????????? | | ??????????????????????????????????????? | | ??????????###########?????????????????? | | ??????????# [ #?????????????????? | | ??????????# @ #?????????????????? | | ??????????# #?????????????????? | | ??????????# s #?????????????????? | | ??????????# """ #?????????????????? | | ??????????# """ #?????????????????? | | ?????####?# "Y"s""" #????????? ???????? | | ?????# #?# """ #???????? ????????? | | ?????# #?#####+#####??????? ?????????? | | ?????# ##### #????????? #?????????? | | ?????# = #???????? #?????????? | | ?????# = #???????? #?????????? | | ????##+###+## #??????? +?????????? | | ????# ## ##??##### #?????????? | | ????# !! ## #???# #?????????? | | ????# !! ## ##### ###???????? | | ????# !! + """ ???????? | | ????# ## ##### """ #?????????? | | ????##########+###### """ #?????????? | | ??????# ! # #?????????? | | ??????# # #?????????? | | ??????# """ """ """ # """ #?????????? | | ??????# """ """ """ # """ #?????????? | | ??????# """ """ """ # """ #?????????? | | ??????? # #?????????? | | ??????############### #?????????? | +----------------------------------------------------+ Best States ------------- Heat Dissipation 47 Energy Generation 10 Energy Capacity 250 Matter Stores 300 Matter Capacity 300 Sight Range 16 Terrain Scan Density 10 Evasion (%) 50 Recoil Reduction 2 Item Schematics ----------------- None Robot Schematics ------------------ None Fabricated ------------ Nothing Alien Tech Used ----------------- None Achievements -------------- None Challenges ------------ None Game ------ Seed SiegeReclamationStreamer Manual? 0 Play Time 00:08:45 Cumulative 86.0 hours Start 2019.11.01 @ 16:52:30 End 2019.11.01 @ 17:00:26 Sessions 1 Manual Loads 0 Difficulty Rogue Special Mode None Game No. 136 Rogue 136 Adventurer 0 Explorer 0 Win Type - Total 0 Types 0/0/0/0/0/0/0 Lore% 30 Gallery% 43 Achievement% 31 Wizard Run 0 Options --------- ASCII 0 Keyboard 0 Movement Mouse Keybinds 0 Fullscreen 1 Font 18/SmallcapsGlow Map View 76x50 Tactical HUD 1 Map Filters NONE Filters NONE Steam 1 RUN: dc8ef81c-0dd0-484a-89dd-6c64f9c1cba7